fUST/lending_fUST_20250519
["ID","MTS","AMOUNT","RATE_DAILY","PERIOD"]
[361537902,1747602633271,-450.0,0.00013698,2]
[361537904,1747602633280,-450.0,0.00013698,2]
[361537906,1747602633289,-450.0,0.00013698,2]
[361537908,1747602633299,-758.03,0.00013698,2]
[361537910,1747602633308,-1252.76,0.00013698,2]
[361537912,1747602633318,-450.0,0.00013698,2]
[361537914,1747602633327,-3482.81,0.00013698,2]
[361537916,1747602633337,-450.0,0.00013698,2]
[361537918,1747602633346,-2639.7,0.00013698,2]
[361537920,1747602633355,-450.0,0.00013698,2]
[361537922,1747602633364,-450.0,0.00013698,2]
[361537924,1747602633374,-450.0,0.00013698,2]
[361537925,1747602633383,-450.0,0.00013698,2]
[361537927,1747602633392,-450.0,0.00013698,2]
[361537929,1747602633402,-450.0,0.00013698,2]
[361537932,1747602633412,-450.0,0.00013698,2]
[361537934,1747602633421,-450.0,0.00013698,2]
[361537936,1747602633431,-450.0,0.00013698,2]
[361537938,1747602633440,-450.0,0.00013698,2]
[361537940,1747602633450,-593.67,0.00013698,2]
[361537941,1747602633459,-450.0,0.00013698,2]
[361537943,1747602633469,-450.0,0.00013698,2]
[361537945,1747602633478,-450.0,0.00013698,2]
[361537948,1747602633489,-450.0,0.00013698,2]
[361537950,1747602633498,-818.57,0.00013698,2]
[361537951,1747602633507,-450.0,0.00013698,2]
[361537953,1747602633517,-450.0,0.00013698,2]
[361537956,1747602633526,-900.16,0.00013698,2]
[361537958,1747602633536,-450.0,0.00013698,2]
[361537959,1747602633545,-450.0,0.00013698,2]
[361537961,1747602633554,-450.0,0.00013698,2]
[361537963,1747602633563,-450.0,0.00013698,2]
[361537965,1747602633573,-450.0,0.00013698,2]
[361537967,1747602633582,-468.86,0.00013698,2]
[361537969,1747602633591,-450.0,0.00013698,2]
[361537971,1747602633600,-450.0,0.00013698,2]
[361537973,1747602633609,-176.86667336,0.00013698,2]
[361537976,1747602633619,-450.0,0.00013698,2]
[361537977,1747602633628,-450.0,0.00013698,2]
[361537980,1747602633637,-450.0,0.00013698,2]
[361537982,1747602633646,-450.0,0.00013698,2]
[361537984,1747602633656,-450.0,0.00013698,2]
[361537985,1747602633665,-596.82,0.00013698,2]
[361537987,1747602633675,-1863.72,0.00013698,2]
[361537990,1747602633684,-450.0,0.00013698,2]
[361537991,1747602633693,-450.0,0.00013698,2]
[361537993,1747602633702,-255.14626982,0.00013698,2]
[361537995,1747602633712,-450.0,0.00013698,2]
[361537997,1747602633721,-450.0,0.00013698,2]
[361537999,1747602633730,-746.07,0.00013698,2]
[361538001,1747602633739,-450.0,0.00013698,2]
[361538003,1747602633748,-450.0,0.00013698,2]
[361538005,1747602633758,-459.29675987,0.00013698,2]
[361538007,1747602633767,-450.0,0.00013698,2]
[361538009,1747602633777,-450.0,0.00013698,2]
[361538011,1747602633787,-450.0,0.00013698,2]
[361538013,1747602633796,-173.68154185,0.00013735,2]
[361538015,1747602633805,-569.6479192,0.000138,2]
[361538017,1747602633814,-158.0682864,0.000138,2]
[361538019,1747602633823,-158.0682864,0.000138,2]
[361538021,1747602633832,-569.6479192,0.000138,2]
[361538023,1747602633842,-157.8448656,0.000138,2]
[361538025,1747602633851,-565.843932,0.000138,2]
[361538027,1747602633860,-363.3878261,0.000138,2]
[361538029,1747602633869,-363.3878261,0.000138,2]
[361538031,1747602633879,-362.1850334,0.000138,2]
[361538033,1747602633888,-850.6454284,0.000138,2]
[361538035,1747602633897,-450.0,0.00013835,2]
[361538037,1747602633907,-276.17,0.00013835,2]
[361538039,1747602633916,-450.0,0.00013835,2]
[361538041,1747602633925,-450.0,0.00013835,2]
[361538043,1747602633934,-758.03,0.00013835,2]
[361538045,1747602633943,-1252.76,0.00013835,2]
[361538047,1747602633954,-450.0,0.00013835,2]
[361538048,1747602633964,-3482.81,0.00013835,2]
[361538051,1747602633974,-2639.7,0.00013835,2]
[361538053,1747602633983,-450.0,0.00013835,2]
[361538055,1747602633993,-450.0,0.00013835,2]
[361538057,1747602634003,-450.0,0.00013835,2]
[361538059,1747602634013,-450.0,0.00013835,2]
[361538061,1747602634022,-450.0,0.00013835,2]
[361538063,1747602634031,-450.0,0.00013835,2]
[361538064,1747602634040,-450.0,0.00013835,2]
[361538066,1747602634050,-450.0,0.00013835,2]
[361538069,1747602634059,-450.0,0.00013835,2]
[361538070,1747602634068,-450.0,0.00013835,2]
[361538073,1747602634077,-593.67,0.00013835,2]
[361538075,1747602634087,-450.0,0.00013835,2]
[361538076,1747602634095,-450.0,0.00013835,2]
[361538078,1747602634104,-450.0,0.00013835,2]
[361538080,1747602634114,-818.57,0.00013835,2]
[361538082,1747602634122,-450.0,0.00013835,2]
[361538084,1747602634131,-450.0,0.00013835,2]
[361538086,1747602634141,-900.16,0.00013835,2]
[361538088,1747602634150,-450.0,0.00013835,2]
[361538090,1747602634159,-450.0,0.00013835,2]
[361538092,1747602634168,-450.0,0.00013835,2]
[361538094,1747602634178,-450.0,0.00013835,2]
[361538096,1747602634187,-450.0,0.00013835,2]
[361538098,1747602634195,-468.86,0.00013835,2]
[361538100,1747602634204,-450.0,0.00013835,2]
[361538102,1747602634213,-450.0,0.00013835,2]
[361538104,1747602634222,-450.0,0.00013835,2]
[361538106,1747602634231,-450.0,0.00013835,2]
[361538108,1747602634240,-450.0,0.00013835,2]
[361538110,1747602634249,-596.82,0.00013835,2]
[361538112,1747602634258,-1863.72,0.00013835,2]
[361538114,1747602634267,-450.0,0.00013835,2]
[361538116,1747602634276,-450.0,0.00013835,2]
[361538118,1747602634286,-450.0,0.00013835,2]
[361538120,1747602634295,-450.0,0.00013835,2]
[361538122,1747602634304,-746.07,0.00013835,2]
[361538124,1747602634313,-450.0,0.00013835,2]
[361538126,1747602634322,-450.0,0.00013835,2]
[361538128,1747602634331,-541.62010189,0.00013835,2]
[361538130,1747602634340,-450.0,0.00013835,2]
[361538132,1747602634349,-450.0,0.00013835,2]
[361538134,1747602634358,-500.0,0.00013841,2]
[361538136,1747602634367,-500.0,0.00013873,2]
[361538138,1747602634375,-500.0,0.00013873,2]
[361538140,1747602634385,-158.0682864,0.000139,2]
[361538142,1747602634393,-16589.06316185,0.000139,2]
[361538143,1747602634403,-12636.50182523,0.00013905,2]
[361538145,1747602634412,-212.32903618,0.00013905,2]
[361538147,1747602634421,-160.0,0.00013905,2]
[361538149,1747602634431,-998.55070715,0.00013905,2]
[361538151,1747602634441,-160.0,0.00013905,2]
[361538153,1747602634450,-160.0,0.00013905,2]
[361538155,1747602634459,-160.0,0.00013905,2]
[361538157,1747602634468,-160.0,0.00013905,2]
[361538159,1747602634477,-422.53311782,0.00013905,2]
[361538161,1747602634487,-160.0,0.00013905,2]
[361538163,1747602634496,-160.0,0.00013905,2]
[361538165,1747602634505,-160.0,0.00013905,2]
[361538167,1747602634514,-715.282,0.00013911,2]
[361538169,1747602634523,-420.0,0.00013938,2]
[361538171,1747602634533,-420.0,0.00013938,2]
[361538173,1747602634542,-500.0,0.00013972,2]
[361538175,1747602634551,-450.0,0.00013972,2]
[361538177,1747602634560,-450.0,0.00013972,2]
[361538179,1747602634570,-305.87674074,0.00013972,2]
[361538181,1747602634579,-758.03,0.00013972,2]
[361538183,1747602634588,-1252.76,0.00013972,2]
[361538185,1747602634597,-450.0,0.00013972,2]
[361538187,1747602634607,-3482.81,0.00013972,2]
[361538189,1747602634616,-2639.7,0.00013972,2]
[361538191,1747602634624,-450.0,0.00013972,2]
[361538193,1747602634635,-450.0,0.00013972,2]
[361538196,1747602634644,-450.0,0.00013972,2]
[361538198,1747602634656,-500.0,0.00013972,2]
[361538200,1747602634665,-450.0,0.00013972,2]
[361538201,1747602634674,-450.0,0.00013972,2]
[361538203,1747602634684,-450.0,0.00013972,2]
[361538206,1747602634694,-450.0,0.00013972,2]
[361538207,1747602634704,-184.00038747,0.00013972,2]
[361538209,1747602634714,-450.0,0.00013972,2]
[361538212,1747602634723,-450.0,0.00013972,2]
[361538214,1747602634733,-593.67,0.00013972,2]
[361538216,1747602634742,-450.0,0.00013972,2]
[361538218,1747602634751,-450.0,0.00013972,2]
[361538220,1747602634761,-450.0,0.00013972,2]
[361538222,1747602634770,-818.57,0.00013972,2]
[361538224,1747602634779,-450.0,0.00013972,2]
[361538226,1747602634788,-450.0,0.00013972,2]
[361538228,1747602634797,-900.16,0.00013972,2]
[361538230,1747602634807,-450.0,0.00013972,2]
[361538245,1747602634945,-450.0,0.00013972,2]
[361538248,1747602634962,-450.0,0.00013972,2]
[361538250,1747602634973,-450.0,0.00013972,2]
[361538251,1747602634982,-450.0,0.00013972,2]
[361538253,1747602634991,-468.86,0.00013972,2]
[361538255,1747602635000,-450.0,0.00013972,2]
[361538258,1747602635010,-450.0,0.00013972,2]
[361538259,1747602635019,-450.0,0.00013972,2]
[361538261,1747602635028,-450.0,0.00013972,2]
[361538263,1747602635037,-450.0,0.00013972,2]
[361538265,1747602635047,-596.82,0.00013972,2]
[361538267,1747602635056,-1863.72,0.00013972,2]
[361538269,1747602635065,-450.0,0.00013972,2]
[361538272,1747602635075,-456.54952823,0.00013972,2]
[361538273,1747602635084,-450.0,0.00013972,2]
[361538276,1747602635093,-365.47659005,0.00013972,2]
[361538278,1747602635103,-746.07,0.00013972,2]
[361538279,1747602635112,-450.0,0.00013972,2]
[361538281,1747602635121,-450.0,0.00013972,2]
[361538283,1747602635131,-450.0,0.00013972,2]
[361538286,1747602635141,-462.85,0.00013972,2]
[361538287,1747602635150,-1680.0,0.00013974,2]
[361538289,1747602635159,-546.0,0.00014081,2]
[361538291,1747602635168,-707.0,0.00014081,2]
[361538293,1747602635177,-2235.0,0.00014081,2]
[361538295,1747602635186,-404.0,0.00014081,2]
[361538297,1747602635195,-450.0,0.00014109,2]
[361538299,1747602635204,-579.81,0.00014109,2]
[361538301,1747602635213,-758.03,0.00014109,2]
[361538303,1747602635222,-1252.76,0.00014109,2]
[361538305,1747602635232,-575.23068023,0.00014109,2]
[361538307,1747602635242,-3482.81,0.00014109,2]
[361538309,1747602635251,-2639.7,0.00014109,2]
[361538311,1747602635260,-450.0,0.00014109,2]
[361538313,1747602635269,-335.07613095,0.00014109,2]
[361538315,1747602635278,-450.0,0.00014109,2]
[361538317,1747602635287,-450.0,0.00014109,2]
[361538319,1747602635296,-450.0,0.00014109,2]
[361538321,1747602635305,-450.0,0.00014109,2]
[361538323,1747602635315,-450.0,0.00014109,2]
[361538325,1747602635324,-450.0,0.00014109,2]
[361538327,1747602635333,-450.0,0.00014109,2]
[361538329,1747602635343,-593.67,0.00014109,2]
[361538331,1747602635352,-450.0,0.00014109,2]
[361538333,1747602635362,-450.0,0.00014109,2]
[361538335,1747602635371,-450.0,0.00014109,2]
[361538338,1747602635381,-818.57,0.00014109,2]
[361538339,1747602635390,-450.0,0.00014109,2]
[361538341,1747602635400,-450.0,0.00014109,2]
[361538343,1747602635410,-900.16,0.00014109,2]
[361538346,1747602635419,-343.81921866,0.00014109,2]
[361538347,1747602635428,-450.0,0.00014109,2]
[361538349,1747602635437,-450.0,0.00014109,2]
[361538351,1747602635447,-450.0,0.00014109,2]
[361538353,1747602635456,-450.0,0.00014109,2]
[361538355,1747602635466,-468.86,0.00014109,2]
[361538357,1747602635475,-450.0,0.00014109,2]
[361538359,1747602635484,-450.0,0.00014109,2]
[361538361,1747602635493,-450.0,0.00014109,2]
[361538363,1747602635503,-450.0,0.00014109,2]
[361538365,1747602635512,-450.0,0.00014109,2]
[361538367,1747602635521,-596.82,0.00014109,2]
[361538369,1747602635530,-1863.72,0.00014109,2]
[361538371,1747602635539,-450.0,0.00014109,2]
[361538373,1747602635548,-450.0,0.00014109,2]
[361538375,1747602635557,-746.07,0.00014109,2]
[361538377,1747602635567,-450.0,0.00014109,2]
[361538379,1747602635576,-450.0,0.00014109,2]
[361538381,1747602635585,-450.0,0.00014109,2]
[361538383,1747602635595,-450.0,0.00014246,2]
[361538385,1747602635605,-758.03,0.00014246,2]
[361538388,1747602635614,-1252.76,0.00014246,2]
[361538389,1747602635624,-3482.81,0.00014246,2]
[361538391,1747602635634,-2639.7,0.00014246,2]
[361538393,1747602635644,-220.4211885,0.00014246,2]
[361538395,1747602635654,-450.0,0.00014246,2]
[361538398,1747602635663,-450.0,0.00014246,2]
[361538399,1747602635672,-450.0,0.00014246,2]
[361538401,1747602635681,-450.0,0.00014246,2]
[361538403,1747602635691,-450.0,0.00014246,2]
[361538405,1747602635700,-450.0,0.00014246,2]
[361538407,1747602635709,-450.0,0.00014246,2]
[361538409,1747602635718,-593.67,0.00014246,2]
[361538412,1747602635727,-450.0,0.00014246,2]
[361538414,1747602635737,-450.0,0.00014246,2]
[361538415,1747602635746,-450.0,0.00014246,2]
[361538417,1747602635755,-818.57,0.00014246,2]
[361538419,1747602635764,-553.84026358,0.00014246,2]
[361538421,1747602635775,-450.0,0.00014246,2]
[361538423,1747602635784,-900.16,0.00014246,2]
[361538425,1747602635793,-450.0,0.00014246,2]
[361538427,1747602635802,-450.0,0.00014246,2]
[361538429,1747602635811,-450.0,0.00014246,2]
[361538431,1747602635820,-527.29540481,0.00014246,2]
[361538433,1747602635829,-468.86,0.00014246,2]
[361538435,1747602635839,-308.32,0.00014246,2]
[361538437,1747602635848,-450.0,0.00014246,2]
[361538439,1747602635857,-596.2623621,0.00014246,2]
[361538441,1747602635867,-352.83,0.00014246,2]
[361538443,1747602635876,-450.0,0.00014246,2]
[361538445,1747602635886,-596.82,0.00014246,2]
[361538447,1747602635896,-1863.72,0.00014246,2]
[361538449,1747602635907,-450.0,0.00014246,2]
[361538451,1747602635918,-450.0,0.00014246,2]
[361538453,1747602635927,-746.07,0.00014246,2]
[361538455,1747602635937,-450.0,0.00014246,2]
[361538457,1747602635947,-450.0,0.00014246,2]
[361538459,1747602635959,-450.0,0.00014246,2]
[361538461,1747602635968,-16589.0631617,0.00014314,2]
[361538463,1747602635978,-450.0,0.00014383,2]
[361538465,1747602635987,-758.03,0.00014383,2]
[361538467,1747602635996,-1252.76,0.00014383,2]
[361538469,1747602636006,-3482.81,0.00014383,2]
[361538471,1747602636015,-2639.7,0.00014383,2]
[361538473,1747602636025,-450.0,0.00014383,2]
[361538475,1747602636036,-593.11527675,0.00014383,2]
[361538477,1747602636045,-369.36025233,0.00014383,2]
[361538479,1747602636054,-490.11721284,0.00014383,2]
[361538481,1747602636063,-450.0,0.00014383,2]
[361538483,1747602636072,-450.0,0.00014383,2]
[361538485,1747602636081,-450.0,0.00014383,2]
[361538487,1747602636090,-593.67,0.00014383,2]
[361538489,1747602636099,-450.0,0.00014383,2]
[361538491,1747602636108,-585.27,0.00014383,2]
[361538493,1747602636117,-450.0,0.00014383,2]
[361538495,1747602636126,-818.57,0.00014383,2]
[361538497,1747602636135,-450.0,0.00014383,2]
[361538498,1747602636144,-900.16,0.00014383,2]
[361538500,1747602636154,-450.0,0.00014383,2]
[361538502,1747602636163,-152.28509351,0.00014383,2]
[361538503,1747602636171,-159.46,0.00014383,2]
[361538505,1747602636181,-468.86,0.00014383,2]
[361538507,1747602636190,-450.0,0.00014383,2]
[361538509,1747602636199,-450.0,0.00014383,2]
[361538511,1747602636208,-596.82,0.00014383,2]
[361538513,1747602636217,-1863.72,0.00014383,2]
[361538514,1747602636226,-450.0,0.00014383,2]
[361538516,1747602636235,-450.0,0.00014383,2]
[361538518,1747602636244,-746.07,0.00014383,2]
[361538520,1747602636253,-450.0,0.00014383,2]
[361538521,1747602636262,-341.26,0.00014383,2]
[361538523,1747602636271,-450.0,0.00014383,2]
[361538525,1747602636280,-636.0,0.000144,2]
[361538526,1747602636289,-1000.0,0.00014421,2]
[361538528,1747602636298,-492.6,0.0001452,2]
[361538530,1747602636307,-758.03,0.0001452,2]
[361538532,1747602636317,-1252.76,0.0001452,2]
[361538534,1747602636326,-3482.81,0.0001452,2]
[361538536,1747602636335,-2639.7,0.0001452,2]
[361538538,1747602636344,-450.0,0.0001452,2]
[361538539,1747602636354,-450.0,0.0001452,2]
[361538541,1747602636363,-450.0,0.0001452,2]
[361538543,1747602636372,-450.0,0.0001452,2]
[361538545,1747602636381,-593.67,0.0001452,2]
[361538546,1747602636390,-450.0,0.0001452,2]
[361538548,1747602636400,-450.0,0.0001452,2]
[361538550,1747602636409,-818.57,0.0001452,2]
[361538552,1747602636418,-450.0,0.0001452,2]
[361538553,1747602636427,-900.16,0.0001452,2]
[361538555,1747602636437,-483.25570811,0.0001452,2]
[361538557,1747602636446,-468.86,0.0001452,2]
[361538559,1747602636455,-450.0,0.0001452,2]
[361538560,1747602636464,-450.0,0.0001452,2]
[361538562,1747602636473,-596.82,0.0001452,2]
[361538564,1747602636482,-1863.72,0.0001452,2]
[361538566,1747602636491,-450.0,0.0001452,2]
[361538567,1747602636500,-450.0,0.0001452,2]
[361538569,1747602636509,-746.07,0.0001452,2]
[361538571,1747602636518,-450.0,0.0001452,2]
[361538573,1747602636528,-450.0,0.0001452,2]
[361538574,1747602636537,-500.0,0.00014533,2]
[361538576,1747602636546,-151.0,0.00014616,2]
[361538578,1747602636555,-207.4,0.00014616,2]
[361538580,1747602636564,-758.03,0.00014657,2]
[361538582,1747602636573,-1252.76,0.00014657,2]
[361538583,1747602636584,-1525.91923362,0.00014657,2]
[361538586,1747602636599,-1956.89076638,0.00014657,2]
[361538587,1747602636608,-2639.7,0.00014657,2]
[361538589,1747602636617,-450.0,0.00014657,2]
[361538591,1747602636627,-450.0,0.00014657,2]
[361538593,1747602636635,-450.0,0.00014657,2]
[361538595,1747602636644,-450.0,0.00014657,2]
[361538597,1747602636654,-593.67,0.00014657,2]
[361538598,1747602636663,-450.0,0.00014657,2]
[361538600,1747602636671,-450.0,0.00014657,2]
[361538602,1747602636680,-818.57,0.00014657,2]
[361538604,1747602636689,-450.0,0.00014657,2]
[361538605,1747602636698,-900.16,0.00014657,2]
[361538607,1747602636707,-468.86,0.00014657,2]
[361538609,1747602636716,-450.0,0.00014657,2]
[361538611,1747602636725,-450.0,0.00014657,2]
[361538613,1747602636734,-596.82,0.00014657,2]
[361538615,1747602636744,-1863.72,0.00014657,2]
[361538617,1747602636753,-450.0,0.00014657,2]
[361538618,1747602636763,-450.0,0.00014657,2]
[361538620,1747602636772,-746.07,0.00014657,2]
[361538622,1747602636781,-450.0,0.00014657,2]
[361538624,1747602636791,-450.0,0.00014657,2]
[361538626,1747602636800,-500.0,0.00014726,2]
[361538627,1747602636809,-500.0,0.00014726,2]
[361538629,1747602636818,-414.7868612,0.00014726,2]
[361538631,1747602636827,-500.0,0.00014726,2]
[361538633,1747602636836,-16589.0631617,0.00014728,2]
[361538635,1747602636845,-758.03,0.00014794,2]
[361538637,1747602636854,-1252.76,0.00014794,2]
[361538638,1747602636863,-3482.81,0.00014794,2]
[361538640,1747602636872,-2639.7,0.00014794,2]
[361538642,1747602636882,-450.0,0.00014794,2]
[361538644,1747602636891,-450.0,0.00014794,2]
[361538646,1747602636900,-450.0,0.00014794,2]
[361538648,1747602636909,-350.41383871,0.00014794,2]
[361538649,1747602636918,-593.67,0.00014794,2]
[361538651,1747602636927,-450.0,0.00014794,2]
[361538653,1747602636936,-450.0,0.00014794,2]
[361538655,1747602636945,-818.57,0.00014794,2]
[361538657,1747602636956,-450.0,0.00014794,2]
[361538659,1747602636965,-900.16,0.00014794,2]
[361538660,1747602636974,-468.86,0.00014794,2]
[361538662,1747602636983,-450.0,0.00014794,2]
[361538664,1747602636992,-450.0,0.00014794,2]
[361538666,1747602637002,-596.82,0.00014794,2]
[361538668,1747602637011,-1863.72,0.00014794,2]
[361538670,1747602637020,-450.0,0.00014794,2]
[361538672,1747602637030,-589.07477437,0.00014794,2]
[361538673,1747602637039,-746.07,0.00014794,2]
[361538675,1747602637048,-264.34,0.00014794,2]
[361538676,1747602637057,-450.0,0.00014794,2]
[361538678,1747602637066,-438.04882979,0.000149,2]
[361538680,1747602637075,-438.04882978,0.000149,2]
[361538682,1747602637083,-438.04882978,0.000149,2]
[361538684,1747602637092,-758.03,0.00014931,2]
[361538686,1747602637101,-1252.76,0.00014931,2]
[361538687,1747602637109,-3482.81,0.00014931,2]
[361538689,1747602637120,-2639.7,0.00014931,2]
[361538691,1747602637129,-450.0,0.00014931,2]
[361538693,1747602637138,-450.0,0.00014931,2]
[361538695,1747602637147,-450.0,0.00014931,2]
[361538697,1747602637156,-593.67,0.00014931,2]
[361538698,1747602637165,-450.0,0.00014931,2]
[361538700,1747602637174,-477.94,0.00014931,2]
[361538702,1747602637183,-818.57,0.00014931,2]
[361538704,1747602637192,-303.24,0.00014931,2]
[361538706,1747602637201,-900.16,0.00014931,2]
[361538707,1747602637210,-468.86,0.00014931,2]
[361538709,1747602637219,-450.0,0.00014931,2]
[361538711,1747602637228,-450.0,0.00014931,2]
[361538713,1747602637237,-596.82,0.00014931,2]
[361538715,1747602637246,-1863.72,0.00014931,2]
[361538717,1747602637255,-450.0,0.00014931,2]
[361538718,1747602637265,-746.07,0.00014931,2]
[361538720,1747602637274,-389.485581,0.00014939,2]
[361538722,1747602637283,-175.9147158,0.00014939,2]
[361538724,1747602637292,-287.9806566,0.00014939,2]
[361538726,1747602637301,-1138.1634272,0.00014939,2]
[361538728,1747602637310,-315.8801604,0.00014939,2]
[361538729,1747602637319,-569.6479192,0.00014939,2]
[361538731,1747602637328,-1500.0,0.00014968,2]
[361538733,1747602637338,-160.0,0.00015,2]
[361538735,1747602637347,-758.03,0.00015068,2]
[361538737,1747602637356,-1252.76,0.00015068,2]
[361538739,1747602637365,-3482.81,0.00015068,2]
[361538740,1747602637375,-2639.7,0.00015068,2]
[361538742,1747602637384,-450.0,0.00015068,2]
[361538744,1747602637393,-450.0,0.00015068,2]
[361538746,1747602637404,-450.0,0.00015068,2]
[361538748,1747602637414,-593.67,0.00015068,2]
[361538750,1747602637424,-450.0,0.00015068,2]
[361538751,1747602637433,-818.57,0.00015068,2]
[361538753,1747602637443,-900.16,0.00015068,2]
[361538755,1747602637453,-468.86,0.00015068,2]
[361538757,1747602637462,-450.0,0.00015068,2]
[361538759,1747602637471,-450.0,0.00015068,2]
[361538761,1747602637481,-596.82,0.00015068,2]
[361538762,1747602637490,-1863.72,0.00015068,2]
[361538764,1747602637500,-450.0,0.00015068,2]
[361538766,1747602637509,-746.07,0.00015068,2]
[361538768,1747602637518,-417.9875181,0.00015097,2]
[361538770,1747602637528,-500.0,0.00015098,2]
[361538771,1747602637537,-500.0,0.00015098,2]
[361538773,1747602637547,-500.0,0.00015098,2]
[361538775,1747602637556,-500.0,0.00015098,2]
[361538777,1747602637565,-500.0,0.0001512,2]
[361538778,1747602637574,-500.0,0.00015122,2]
[361538779,1747602637584,-500.0,0.00015122,2]
[361538780,1747602637593,-500.0,0.00015122,2]
[361538781,1747602637602,-500.0,0.00015137,2]
[361538782,1747602637611,-500.0,0.00015137,2]
[361538784,1747602637620,-500.0,0.00015137,2]
[361538785,1747602637630,-500.0,0.00015137,2]
[361538787,1747602637639,-16589.0631617,0.00015141,2]
[361538789,1747602637648,-500.0,0.00015143,2]
[361538791,1747602637659,-500.0,0.0001516,2]
[361538792,1747602637668,-581.93503331,0.00015176,2]
[361538794,1747602637678,-500.0,0.00015178,2]
[361538795,1747602637687,-758.03,0.00015205,2]
[361538796,1747602637695,-1252.76,0.00015205,2]
[361538797,1747602637705,-3482.81,0.00015205,2]
[361538798,1747602637714,-2639.7,0.00015205,2]
[361538799,1747602637723,-450.0,0.00015205,2]
[361538800,1747602637732,-450.0,0.00015205,2]
[361538801,1747602637741,-221.81890607,0.00015205,2]
[361538802,1747602637751,-593.67,0.00015205,2]
[361538803,1747602637761,-450.0,0.00015205,2]
[361538804,1747602637770,-818.57,0.00015205,2]
[361538805,1747602637780,-900.16,0.00015205,2]
[361538806,1747602637789,-468.86,0.00015205,2]
[361538807,1747602637798,-450.0,0.00015205,2]
[361538809,1747602637808,-450.0,0.00015205,2]
[361538810,1747602637817,-596.82,0.00015205,2]
[361538811,1747602637827,-1863.72,0.00015205,2]
[361538812,1747602637836,-450.0,0.00015205,2]
[361538813,1747602637846,-746.07,0.00015205,2]
[361538814,1747602637855,-500.0,0.00015259,2]
[361538816,1747602637982,-587.0,0.00015289,2]
[361538817,1747602637992,-573.72568963,0.00015297,2]
[361538818,1747602638002,-758.03,0.00015342,2]
[361538819,1747602638012,-1252.76,0.00015342,2]
[361538820,1747602638021,-3482.81,0.00015342,2]
[361538821,1747602638033,-2639.7,0.00015342,2]
[361538822,1747602638043,-450.0,0.00015342,2]
[361538823,1747602638054,-450.0,0.00015342,2]
[361538824,1747602638063,-593.67,0.00015342,2]
[361538825,1747602638075,-450.0,0.00015342,2]
[361538826,1747602638084,-818.57,0.00015342,2]
[361538827,1747602638093,-900.16,0.00015342,2]
[361538828,1747602638102,-468.86,0.00015342,2]
[361538829,1747602638111,-450.0,0.00015342,2]
[361538830,1747602638121,-450.0,0.00015342,2]
[361538831,1747602638130,-596.82,0.00015342,2]
[361538832,1747602638139,-1863.72,0.00015342,2]
[361538833,1747602638148,-450.0,0.00015342,2]
[361538834,1747602638158,-746.07,0.00015342,2]
[361538835,1747602638167,-758.03,0.00015479,2]
[361538836,1747602638177,-1252.76,0.00015479,2]